{"text_format":"2","workbook":"xlsx","n_sheets":6,"sheets":["Resumo","Motorista - Montes Claros","Motorista - Três Marias","Motorista -Nova Porteirinha","Uniformes_Equip.","Supervisor - Montes Claros"],"not_rendered":{"charts":0,"images":1,"macros":0,"external_links":0,"defined_names":6,"comments":0,"pivot_tables":0},"unopened":[],"bounds":{"document_bytes":16777216,"sheet_cells":100000,"run_cost":"one","rows_first":2000,"rows_last":500,"rows_between":2000,"halvings":0,"cell_chars":16384,"cell_head_chars":4096},"cells_cut":0,"cells_raw":0,"read":"whole","date_system":"1900"}

{"sheet":"Resumo","index":0,"n_rows":8,"n_cols":6,"rows_kept":8,"cut":false,"hidden":false,"merged":[[0,1,0,5],[9,1,9,5],[11,3,11,4],[6,1,6,3],[7,1,7,4]]}
[null,"Planilha resumo de valores"]
[null,"CATEGORIA","Qtde. de Postos","Valor Unitário","Valor Mensal","Valor Anual"]
[null,"Montes Claros - motorista",null,null,{"$f":"(C3*D3)","v":0},{"$f":"(E3*12)","v":0}]
[null,"Três Marias - motorista",null,null,{"$f":"(C4*D4)","v":0},{"$f":"(E4*12)","v":0}]
[null,"Nova Porteirinha - motorista",null,null,{"$f":"(C5*D5)","v":0},0]
[null,"Montes Claros - supervisor",null,null,{"$f":"C6*D6","v":0},{"$f":"E6*12","v":0}]
[null,"Subtotal: ",null,null,{"$f":"SUM(E3:E5)","v":0},{"$f":"SUM(F3:F6)","v":0}]
[null,"Total",null,null,null,{"$f":"F7","v":0}]

{"sheet":"Motorista - Montes Claros","index":1,"n_rows":118,"n_cols":10,"rows_kept":118,"cut":false,"hidden":false,"merged":[[115,2,115,8],[116,2,116,8],[117,1,117,8],[109,1,109,8],[110,2,110,8],[111,2,111,8],[112,2,112,8],[113,2,113,8],[114,2,114,8],[102,2,102,7],[103,2,103,7],[104,2,104,7],[105,1,105,7],[106,2,106,9],[108,1,108,9],[96,1,96,9],[97,1,97,9],[98,2,98,7],[99,2,99,7],[100,2,100,7],[101,2,101,4],[101,5,101,6],[90,2,90,7],[91,2,91,7],[92,2,92,7],[93,2,93,7],[94,2,94,7],[95,1,95,7],[84,1,84,8],[85,2,85,8],[86,2,86,8],[87,1,87,8],[88,1,88,9],[89,1,89,9],[78,1,78,9],[79,1,79,7],[80,2,80,7],[81,1,81,7],[82,1,82,9],[83,1,83,9],[72,2,72,7],[73,2,73,7],[74,2,74,7],[75,2,75,7],[76,2,76,7],[77,1,77,7],[66,2,66,7],[67,1,67,7],[68,1,68,9],[69,1,69,9],[70,1,70,7],[71,2,71,7],[60,2,60,7],[61,2,61,7],[62,2,62,7],[63,2,63,7],[64,2,64,7],[65,2,65,7],[54,2,54,8],[55,2,55,8],[56,2,56,8],[57,1,57,8],[58,1,58,9],[59,1,59,9],[49,2,49,7],[50,1,50,8],[51,1,51,9],[52,1,52,9],[53,1,53,8],[45,2,45,7],[46,2,46,7],[47,2,47,7],[48,2,48,7],[39,2,39,7],[40,2,40,7],[41,1,41,7],[42,1,42,9],[43,1,43,7],[44,2,44,7],[33,2,33,7],[34,2,34,7],[35,2,35,7],[36,2,36,7],[37,2,37,7],[38,2,38,7],[27,1,27,7],[28,2,28,7],[29,2,29,7],[30,1,30,7],[31,1,31,9],[32,1,32,7],[21,2,21,7],[22,2,22,7],[23,2,23,7],[24,1,24,8],[26,1,26,9],[15,1,15,9],[16,1,16,9],[17,2,17,7],[18,2,18,7],[19,2,19,7],[20,2,20,7],[0,1,0,9],[1,2,1,8],[2,2,2,8],[9,1,9,9],[10,2,10,8],[11,2,11,8],[12,2,12,8],[13,2,13,8],[14,2,14,8],[3,2,3,8],[5,1,5,9],[6,1,6,2],[6,3,6,4],[6,5,6,9],[7,1,7,2],[7,3,7,4],[7,5,7,9]]}
[" 1ª Superintendência Regional – Montes Claros / MG","Discriminação dos Serviços"]
[null,"B","Município",{"$nulls":6},"Montes Claros/MG"]
[null,"C","Ano do Acordo, Convenção ou Dissídio Coletivo",{"$nulls":6},2023]
[null,"D","Nº de meses de execução contratual",{"$nulls":6},12]
[]
[null,"Identificação do Serviço"]
[null,"Tipo de Serviço",null,"Unidade de Medida",null,"Quantidade total a contratar "]
[null,"Motorista",null,"SERVIÇO ",null,5]
[]
[null,"Dados para composição dos custos referentes à mão-de-obra"]
[null,1,"Tipo de serviço (mesmo serviço com características distintas)",{"$nulls":6},{"$f":"B8","v":"Motorista"}]
[null,2,"Classificação Brasileira de Ocupações (CBO)",{"$nulls":6},"7823-05; 7823-10 e 7825-10"]
[null,3,"Salário Nominativo da Categoria Profissional",{"$nulls":6},2263.63]
[null,4,"Categoria profissional (vinculada à execução contratual)",{"$nulls":6},"Motorista"]
[null,5,"Data base da categoria (dia/mês/ano)",{"$nulls":6},"2023-01-01"]
[]
[null,"MÓDULO 1 - COMPOSIÇÃO DA REMUNERAÇÃO"]
[null,1,"COMPOSIÇÃO DA REMUNERAÇÃO",{"$nulls":5},"%","VALOR (R$)"]
[null,"A","Salário Base"]
[null,"B","Adicional Periculosidade "]
[null,"C","Adicional Insalubridade"]
[null,"D","Adicional Noturno"]
[null,"E","Adicional de Hora Noturna Reduzida"]
[null,"F","Outros (especificar)"]
[null,"TOTAL DO MÓDULO 1",{"$nulls":7},{"$f":"TRUNC(SUM(J19:J24),2)","v":0}]
[]
[null,"MÓDULO 2 – ENCARGOS E BENEFÍCIOS ANUAIS, MENSAIS E DIÁRIOS"]
[null,"Submódulo 2.1 - 13º Salário, Férias e Adicional de Férias",{"$nulls":6},"%","VALOR (R$)"]
[null,"A","13 (Décimo-terceiro) salário ",{"$nulls":5},8.3299999999999999E-2,{"$f":"I29*J25","v":0}]
[null,"B","Férias e Adicional de Férias",{"$nulls":5},0.121,{"$f":"I30*J25","v":0}]
[null,"TOTAL SUBMÓDULO 2.1",{"$nulls":6},{"$f":"TRUNC(SUM(I29:I30),4)","v":0.20430000000000001},{"$f":"TRUNC(SUM(J29:J30),2)","v":0}]
[]
[null,"Submódulo 2.2 - GPS, FGTS e Outras Contribuições",{"$nulls":6},"%","VALOR (R$)"]
[null,"A","INSS ",{"$nulls":6},{"$f":"$I34*($J$31+$J$25)","v":0}]
[null,"B","Salário Educação ",{"$nulls":6},{"$f":"$I35*($J$31+$J$25)","v":0}]
[null,"C","SAT",{"$nulls":6},0]
[null,"D","SESC ou SESI",{"$nulls":6},0]
[null,"E","SENAI - SENAC ",{"$nulls":6},0]
[null,"F","SEBRAE ",{"$nulls":6},0]
[null,"G","INCRA ",{"$nulls":6},0]
[null,"H","FGTS ",{"$nulls":6},0]
[null,"TOTAL SUBMÓDULO 2.2",{"$nulls":7},{"$f":"TRUNC(SUM(J34:J41),2)","v":0}]
[]
[null,"Submódulo 2.3 - Benefícios Mensais e Diários",{"$nulls":7},"VALOR (R$)"]
[null,"A","Transporte "]
[null,"B","Auxílio-Refeição/Alimentação "]
[null,"C","Seguro de vida"]
[null,"D","Auxílio Saúde - PAF"]
[null,"E","Contribuição Assistencial Patronal"]
[null,"F","Outros (especificar)"]
[null,"TOTAL SUBMÓDULO 2.3",{"$nulls":7},{"$f":"TRUNC(SUM(J45:J50),2)","v":0}]
[]
[null,"QUADRO-RESUMO DO MÓDULO 2 - ENCARGOS, BENEFÍCIOS ANUAIS, MENSAIS E DIÁRIOS"]
[null,"Módulo 2 - Encargos, Benefícios Anuais, Mensais e Diários",{"$nulls":7},"VALOR (R$)"]
[null,"2.1","13º Salário, Férias e Adicional de Férias"]
[null,"2.2","GPS, FGTS e Outras Contribuições"]
[null,"2.3","Benefícios Mensais e Diários"]
[null,"TOTAL DO MÓDULO 2",{"$nulls":7},{"$f":"TRUNC(SUM(J55:J57),2)","v":0}]
[]
[null,"MÓDULO 3 – PROVISÃO PARA RESCISÃO"]
[null,3,"PROVISÃO PARA RESCISÃO",{"$nulls":5},"%","VALOR (R$)"]
[null,"A","Aviso Prévio Indenizado"]
[null,"B","Incidência do FGTS sobre Aviso Prévio Indenizado"]
[null,"C","Multa do FGTS e Contribuição Social sobre o Aviso Prévio Indenizado"]
[null,"D","Aviso Prévio Trabalhado "]
[null,"E","Incidência dos encargos do submódulo 2.2 sobre Aviso Prévio Trabalhado"]
[null,"F","Multa do FGTS e Contribuição Social sobre o Aviso Prévio Trabalhado. "]
[null,"TOTAL DO MÓDULO 3",{"$nulls":7},{"$f":"TRUNC(SUM(J62:J67),2)","v":0}]
[]
[null,"MÓDULO 4 – CUSTO DE REPOSIÇÃO DO PROFISSIONAL AUSENTE"]
[null,"Submódulo 4.1 - Ausências Legais",{"$nulls":6},"%","VALOR (R$)"]
[null,"A","Férias "]
[null,"B","Ausências Legais"]
[null,"C","Licença Paternidade"]
[null,"D","Ausência por Acidente de Trabalho "]
[null,"E","Afastamento Maternidade"]
[null,"F","Outros (especificar)"]
[null,"TOTAL SUBMÓDULO 4.1",{"$nulls":7},{"$f":"TRUNC(SUM(J72:J77),2)","v":0}]
[]
[null,"Submódulo 4.2 - Intrajornada",{"$nulls":6},"%","VALOR (R$)"]
[null,"A","Intervalo para Repouso ou Alimentação"]
[null,"TOTAL SUBMÓDULO 4.2",{"$nulls":6},{"$f":"TRUNC(SUM(I81),4)","v":0},{"$f":"TRUNC(SUM(J81),2)","v":0}]
[]
[null,"QUADRO-RESUMO DO MÓDULO 4 - CUSTO DE REPOSIÇÃO DO PROFISSIONAL AUSENTE"]
[null,"Módulo 4 - Custo de Reposição do Profissional Ausente",{"$nulls":7},"VALOR (R$)"]
[null,"4.1","Ausências Legais",{"$nulls":6},{"$f":"J78","v":0}]
[null,"4.2","Intrajornada",{"$nulls":6},{"$f":"J82","v":0}]
[null,"TOTAL DO MÓDULO 4",{"$nulls":7},{"$f":"TRUNC(SUM(J86:J87),2)","v":0}]
[]
[null,"MÓDULO 5 – INSUMOS DIVERSOS"]
[null,5,"INSUMOS DIVERSOS",{"$nulls":6},"VALOR (R$)"]
[null,"A","Uniformes"]
[null,"B","Materiais"]
[null,"C","Equipamentos"]
[null,"D","Outros"]
[null,"TOTAL DO MÓDULO 5",{"$nulls":6},"-",{"$f":"SUM(J92:J95)","v":0}]
[]
[null,"MÓDULO 6 – CUSTOS INDIRETOS, TRIBUTOS E LUCRO"]
[null,6,"CUSTOS INDIRETOS, TRIBUTOS E LUCRO",{"$nulls":5},"%","VALOR (R$)"]
[null,"A","Custos Indiretos"]
[null,"B","Lucro"]
[null,"C","TRIBUTOS",null,null,"Base Cálculo",null,{"$f":"ROUND((J116+J100+J101)/(1-I102),2)","v":0}]
[null,"C.1","PIS "]
[null,"C.2","COFINS "]
[null,"C.3","ISSQN"]
[null,"TOTAL DO MÓDULO 6",{"$nulls":7},{"$f":"J100+J101+J102","v":0}]
[]
[]
[null,"QUADRO RESUMO DO CUSTO POR EMPREGADO"]
[null,"Mão-de-Obra vinculada à execução contratual (valor por empregado)",{"$nulls":7},"VALOR (R$)"]
[null,"A",{"$f":"B17","v":"MÓDULO 1 - COMPOSIÇÃO DA REMUNERAÇÃO"},{"$nulls":6},{"$f":"J25","v":0}]
[null,"B",{"$f":"B27","v":"MÓDULO 2 – ENCARGOS E BENEFÍCIOS ANUAIS, MENSAIS E DIÁRIOS"},{"$nulls":6},{"$f":"J58","v":0}]
[null,"C",{"$f":"B60","v":"MÓDULO 3 – PROVISÃO PARA RESCISÃO"},{"$nulls":6},{"$f":"J68","v":0}]
[null,"D",{"$f":"B70","v":"MÓDULO 4 – CUSTO DE REPOSIÇÃO DO PROFISSIONAL AUSENTE"},{"$nulls":6},{"$f":"J88","v":0}]
[null,"E",{"$f":"B90","v":"MÓDULO 5 – INSUMOS DIVERSOS"},{"$nulls":6},{"$f":"J96","v":0}]
[null,null,"Subtotal (A + B + C + D + E)",{"$nulls":6},{"$f":"TRUNC(SUM(J111:J115),2)","v":0}]
[null,"F",{"$f":"B98","v":"MÓDULO 6 – CUSTOS INDIRETOS, TRIBUTOS E LUCRO"},{"$nulls":6},{"$f":"J106","v":0}]
[null,"PREÇO TOTAL POR EMPREGADO",{"$nulls":7},{"$f":"TRUNC(SUM(J116:J117),2)","v":0}]

{"sheet":"Motorista - Três Marias","index":2,"n_rows":118,"n_cols":10,"rows_kept":118,"cut":false,"hidden":false,"merged":[[7,1,7,2],[7,3,7,4],[7,5,7,9],[9,1,9,9],[10,2,10,8],[11,2,11,8],[0,1,0,9],[1,2,1,8],[2,2,2,8],[3,2,3,8],[5,1,5,9],[6,1,6,2],[6,3,6,4],[6,5,6,9],[18,2,18,7],[19,2,19,7],[20,2,20,7],[21,2,21,7],[22,2,22,7],[23,2,23,7],[12,2,12,8],[13,2,13,8],[14,2,14,8],[15,1,15,9],[16,1,16,9],[17,2,17,7],[31,1,31,7],[32,1,32,9],[33,1,33,7],[34,2,34,7],[35,2,35,7],[36,2,36,7],[24,2,24,7],[25,1,25,8],[27,1,27,9],[28,1,28,7],[29,2,29,7],[30,2,30,7],[43,1,43,9],[44,1,44,7],[45,2,45,7],[46,2,46,7],[47,2,47,7],[48,2,48,7],[37,2,37,7],[38,2,38,7],[39,2,39,7],[40,2,40,7],[41,2,41,7],[42,1,42,7],[54,2,54,8],[55,2,55,8],[56,2,56,8],[57,1,57,8],[58,1,58,9],[59,1,59,9],[49,2,49,7],[50,1,50,8],[51,1,51,9],[52,1,52,9],[53,1,53,8],[66,2,66,7],[67,1,67,7],[68,1,68,9],[69,1,69,9],[70,1,70,7],[71,2,71,7],[60,2,60,7],[61,2,61,7],[62,2,62,7],[63,2,63,7],[64,2,64,7],[65,2,65,7],[78,1,78,9],[79,1,79,7],[80,2,80,7],[81,1,81,7],[82,1,82,9],[83,1,83,9],[72,2,72,7],[73,2,73,7],[74,2,74,7],[75,2,75,7],[76,2,76,7],[77,1,77,7],[90,2,90,7],[91,2,91,7],[92,2,92,7],[93,2,93,7],[94,2,94,7],[95,1,95,7],[84,1,84,8],[85,2,85,8],[86,2,86,8],[87,1,87,8],[88,1,88,9],[89,1,89,9],[102,2,102,7],[103,2,103,7],[104,2,104,7],[105,1,105,7],[106,2,106,9],[108,1,108,9],[96,1,96,9],[97,1,97,9],[98,2,98,7],[99,2,99,7],[100,2,100,7],[101,2,101,4],[101,5,101,6],[115,2,115,8],[116,2,116,8],[117,1,117,8],[109,1,109,8],[110,2,110,8],[111,2,111,8],[112,2,112,8],[113,2,113,8],[114,2,114,8]]}
[" 1ª Superintendência Regional – Montes Claros / MG","Discriminação dos Serviços"]
[null,"B","Município",{"$nulls":6},"Três Marias/MG"]
[null,"C","Ano do Acordo, Convenção ou Dissídio Coletivo",{"$nulls":6},2023]
[null,"D","Nº de meses de execução contratual",{"$nulls":6},12]
[]
[null,"Identificação do Serviço"]
[null,"Tipo de Serviço",null,"Unidade de Medida",null,"Quantidade total a contratar "]
[null,"Motorista",null,"SERVIÇO ",null,1]
[]
[null,"Dados para composição dos custos referentes à mão-de-obra"]
[null,1,"Tipo de serviço (mesmo serviço com características distintas)",{"$nulls":6},{"$f":"B8","v":"Motorista"}]
[null,2,"Classificação Brasileira de Ocupações (CBO)",{"$nulls":6},"7823-05; 7823-10 e 7825-10"]
[null,3,"Salário Nominativo da Categoria Profissional",{"$nulls":6},2284.25]
[null,4,"Categoria profissional (vinculada à execução contratual)",{"$nulls":6},"Motorista"]
[null,5,"Data base da categoria (dia/mês/ano)",{"$nulls":6},"2023-01-01"]
[]
[null,"MÓDULO 1 - COMPOSIÇÃO DA REMUNERAÇÃO"]
[null,1,"COMPOSIÇÃO DA REMUNERAÇÃO",{"$nulls":5},"%","VALOR (R$)"]
[null,"A","Salário Base"]
[null,"B","Adicional Periculosidade "]
[null,"C","Adicional Insalubridade"]
[null,"D","Adicional Noturno"]
[null,"E","Adicional de Hora Noturna Reduzida"]
[]
[null,"G","Outros (especificar)"]
[null,"TOTAL DO MÓDULO 1",{"$nulls":7},{"$f":"TRUNC(SUM(J19:J25),2)","v":0}]
[]
[null,"MÓDULO 2 – ENCARGOS E BENEFÍCIOS ANUAIS, MENSAIS E DIÁRIOS"]
[null,"Submódulo 2.1 - 13º Salário, Férias e Adicional de Férias",{"$nulls":6},"%","VALOR (R$)"]
[null,"A","13 (Décimo-terceiro) salário "]
[null,"B","Férias e Adicional de Férias"]
[null,"TOTAL SUBMÓDULO 2.1",{"$nulls":6},{"$f":"TRUNC(SUM(I30:I31),4)","v":0},{"$f":"TRUNC(SUM(J30:J31),2)","v":0}]
[]
[null,"Submódulo 2.2 - GPS, FGTS e Outras Contribuições",{"$nulls":6},"%","VALOR (R$)"]
[null,"A","INSS "]
[null,"B","Salário Educação "]
[null,"C","SAT"]
[null,"D","SESC ou SESI"]
[null,"E","SENAI - SENAC "]
[null,"F","SEBRAE "]
[null,"G","INCRA "]
[null,"H","FGTS "]
[null,"TOTAL SUBMÓDULO 2.2",{"$nulls":6},{"$f":"SUM(I35:I42)","v":0},{"$f":"TRUNC(SUM(J35:J42),2)","v":0}]
[]
[null,"Submódulo 2.3 - Benefícios Mensais e Diários",{"$nulls":7},"VALOR (R$)"]
[null,"A","Transporte "]
[null,"B","Auxílio-Refeição/Alimentação "]
[null,"D","Seguro de vida"]
[null,"E","Auxílio Saúde - PAF"]
[null,"F","Outros (especificar)"]
[null,"TOTAL SUBMÓDULO 2.3",{"$nulls":7},{"$f":"TRUNC(SUM(J46:J50),2)","v":0}]
[]
[null,"QUADRO-RESUMO DO MÓDULO 2 - ENCARGOS, BENEFÍCIOS ANUAIS, MENSAIS E DIÁRIOS"]
[null,"Módulo 2 - Encargos, Benefícios Anuais, Mensais e Diários",{"$nulls":7},"VALOR (R$)"]
[null,"2.1","13º Salário, Férias e Adicional de Férias",{"$nulls":6},{"$f":"J32","v":0}]
[null,"2.2","GPS, FGTS e Outras Contribuições",{"$nulls":6},{"$f":"J43","v":0}]
[null,"2.3","Benefícios Mensais e Diários",{"$nulls":6},{"$f":"J51","v":0}]
[null,"TOTAL DO MÓDULO 2",{"$nulls":7},{"$f":"TRUNC(SUM(J55:J57),2)","v":0}]
[]
[null,"MÓDULO 3 – PROVISÃO PARA RESCISÃO"]
[null,3,"PROVISÃO PARA RESCISÃO",{"$nulls":5},"%","VALOR (R$)"]
[null,"A","Aviso Prévio Indenizado"]
[null,"B","Incidência do FGTS sobre Aviso Prévio Indenizado"]
[null,"C","Multa do FGTS e Contribuição Social sobre o Aviso Prévio Indenizado"]
[null,"D","Aviso Prévio Trabalhado "]
[null,"E","Incidência dos encargos do submódulo 2.2 sobre Aviso Prévio Trabalhado"]
[null,"F","Multa do FGTS e Contribuição Social sobre o Aviso Prévio Trabalhado. "]
[null,"TOTAL DO MÓDULO 3",{"$nulls":6},{"$f":"TRUNC(SUM(I62:I67),4)","v":0},{"$f":"TRUNC(SUM(J62:J67),2)","v":0}]
[]
[null,"MÓDULO 4 – CUSTO DE REPOSIÇÃO DO PROFISSIONAL AUSENTE"]
[null,"Submódulo 4.1 - Ausências Legais",{"$nulls":6},"%","VALOR (R$)"]
[null,"A","Férias "]
[null,"B","Ausências Legais"]
[null,"C","Licença Paternidade"]
[null,"D","Ausência por Acidente de Trabalho "]
[null,"E","Afastamento Maternidade"]
[null,"F","Outros (especificar)"]
[null,"TOTAL SUBMÓDULO 4.1",{"$nulls":7},{"$f":"TRUNC(SUM(J72:J77),2)","v":0}]
[]
[null,"Submódulo 4.2 - Intrajornada",{"$nulls":6},"%","VALOR (R$)"]
[null,"A","Intervalo para Repouso ou Alimentação",{"$nulls":5},0,{"$f":"$J$26*I81","v":0}]
[null,"TOTAL SUBMÓDULO 4.2",{"$nulls":6},{"$f":"TRUNC(SUM(I81),4)","v":0},{"$f":"TRUNC(SUM(J81),2)","v":0}]
[]
[null,"QUADRO-RESUMO DO MÓDULO 4 - CUSTO DE REPOSIÇÃO DO PROFISSIONAL AUSENTE"]
[null,"Módulo 4 - Custo de Reposição do Profissional Ausente",{"$nulls":7},"VALOR (R$)"]
[null,"4.1","Ausências Legais",{"$nulls":6},{"$f":"J78","v":0}]
[null,"4.2","Intrajornada",{"$nulls":6},{"$f":"J82","v":0}]
[null,"TOTAL DO MÓDULO 4",{"$nulls":7},{"$f":"TRUNC(SUM(J86:J87),2)","v":0}]
[]
[null,"MÓDULO 5 – INSUMOS DIVERSOS"]
[null,5,"INSUMOS DIVERSOS",{"$nulls":6},"VALOR (R$)"]
[null,"A","Uniformes "]
[null,"B","Materiais (mensal + quadrimestral + utensilios)"]
[null,"C","Equipamentos (EQUIPAMENTOS DE LIMPEZA)"]
[null,"D","Outros"]
[null,"TOTAL DO MÓDULO 5",{"$nulls":7},{"$f":"SUM(J92:J95)","v":0}]
[]
[null,"MÓDULO 6 – CUSTOS INDIRETOS, TRIBUTOS E LUCRO"]
[null,6,"CUSTOS INDIRETOS, TRIBUTOS E LUCRO",{"$nulls":5},"%","VALOR (R$)"]
[null,"A","Custos Indiretos"]
[null,"B","Lucro"]
[null,"C","TRIBUTOS",null,null,"Base Cálculo",null,{"$f":"ROUND((J116+J100+J101)/(1-I102),2)","v":0}]
[null,"C.1","PIS "]
[null,"C.2","COFINS "]
[null,"C.3","ISSQN"]
[null,"TOTAL DO MÓDULO 6",{"$nulls":7},{"$f":"J100+J101+J102","v":0}]
[]
[]
[null,"QUADRO RESUMO DO CUSTO POR EMPREGADO"]
[null,"Mão-de-Obra vinculada à execução contratual (valor por empregado)",{"$nulls":7},"VALOR (R$)"]
[null,"A",{"$f":"B17","v":"MÓDULO 1 - COMPOSIÇÃO DA REMUNERAÇÃO"},{"$nulls":6},{"$f":"J26","v":0}]
[null,"B",{"$f":"B28","v":"MÓDULO 2 – ENCARGOS E BENEFÍCIOS ANUAIS, MENSAIS E DIÁRIOS"},{"$nulls":6},{"$f":"J58","v":0}]
[null,"C",{"$f":"B60","v":"MÓDULO 3 – PROVISÃO PARA RESCISÃO"},{"$nulls":6},{"$f":"J68","v":0}]
[null,"D",{"$f":"B70","v":"MÓDULO 4 – CUSTO DE REPOSIÇÃO DO PROFISSIONAL AUSENTE"},{"$nulls":6},{"$f":"J88","v":0}]
[null,"E",{"$f":"B90","v":"MÓDULO 5 – INSUMOS DIVERSOS"},{"$nulls":6},{"$f":"J96","v":0}]
[null,null,"Subtotal (A + B + C + D + E)",{"$nulls":6},{"$f":"TRUNC(SUM(J111:J115),2)","v":0}]
[null,"F",{"$f":"B98","v":"MÓDULO 6 – CUSTOS INDIRETOS, TRIBUTOS E LUCRO"},{"$nulls":6},{"$f":"J106","v":0}]
[null,"PREÇO TOTAL POR EMPREGADO",{"$nulls":7},{"$f":"TRUNC(SUM(J116:J117),2)","v":0}]

{"sheet":"Motorista -Nova Porteirinha","index":3,"n_rows":118,"n_cols":10,"rows_kept":118,"cut":false,"hidden":false,"merged":[[115,2,115,8],[116,2,116,8],[117,1,117,8],[109,1,109,8],[110,2,110,8],[111,2,111,8],[112,2,112,8],[113,2,113,8],[114,2,114,8],[102,2,102,7],[103,2,103,7],[104,2,104,7],[105,1,105,7],[106,2,106,9],[108,1,108,9],[97,1,97,9],[98,2,98,7],[99,2,99,7],[100,2,100,7],[101,2,101,4],[101,5,101,6],[91,2,91,7],[92,2,92,7],[93,2,93,7],[94,2,94,7],[95,1,95,7],[96,1,96,9],[85,2,85,8],[86,2,86,8],[87,1,87,8],[88,1,88,9],[89,1,89,9],[90,2,90,7],[79,1,79,7],[80,2,80,7],[81,1,81,7],[82,1,82,9],[83,1,83,9],[84,1,84,8],[73,2,73,7],[74,2,74,7],[75,2,75,7],[76,2,76,7],[77,1,77,7],[78,1,78,9],[67,1,67,7],[68,1,68,9],[69,1,69,9],[70,1,70,7],[71,2,71,7],[72,2,72,7],[61,2,61,7],[62,2,62,7],[63,2,63,7],[64,2,64,7],[65,2,65,7],[66,2,66,7],[55,2,55,8],[56,2,56,8],[57,1,57,8],[58,1,58,9],[59,1,59,9],[60,2,60,7],[49,2,49,7],[50,1,50,8],[51,1,51,9],[52,1,52,9],[53,1,53,8],[54,2,54,8],[43,1,43,7],[44,2,44,7],[45,2,45,7],[46,2,46,7],[47,2,47,7],[48,2,48,7],[37,2,37,7],[38,2,38,7],[39,2,39,7],[40,2,40,7],[41,1,41,7],[42,1,42,9],[31,1,31,9],[32,1,32,7],[33,2,33,7],[34,2,34,7],[35,2,35,7],[36,2,36,7],[24,1,24,8],[26,1,26,9],[27,1,27,7],[28,2,28,7],[29,2,29,7],[30,1,30,7],[18,2,18,7],[19,2,19,7],[20,2,20,7],[21,2,21,7],[22,2,22,7],[23,2,23,7],[12,2,12,8],[13,2,13,8],[14,2,14,8],[15,1,15,9],[16,1,16,9],[17,2,17,7],[7,1,7,2],[7,3,7,4],[7,5,7,9],[9,1,9,9],[10,2,10,8],[11,2,11,8],[0,1,0,9],[1,2,1,8],[2,2,2,8],[3,2,3,8],[5,1,5,9],[6,1,6,2],[6,3,6,4],[6,5,6,9]]}
[" 1ª Superintendência Regional – Montes Claros / MG","Discriminação dos Serviços"]
[null,"B","Município",{"$nulls":6},"Nova Porteirinha/MG"]
[null,"C","Ano do Acordo, Convenção ou Dissídio Coletivo",{"$nulls":6},2023]
[null,"D","Nº de meses de execução contratual",{"$nulls":6},12]
[]
[null,"Identificação do Serviço"]
[null,"Tipo de Serviço",null,"Unidade de Medida",null,"Quantidade total a contratar "]
[null,"Motorista",null,"SERVIÇO ",null,1]
[]
[null,"Dados para composição dos custos referentes à mão-de-obra"]
[null,1,"Tipo de serviço (mesmo serviço com características distintas)",{"$nulls":6},{"$f":"B8","v":"Motorista"}]
[null,2,"Classificação Brasileira de Ocupações (CBO)",{"$nulls":6},"7823-05; 7823-10 e 7825-10"]
[null,3,"Salário Nominativo da Categoria Profissional",{"$nulls":6},2263.63]
[null,4,"Categoria profissional (vinculada à execução contratual)",{"$nulls":6},"Motorista"]
[null,5,"Data base da categoria (dia/mês/ano)",{"$nulls":6},"2023-01-01"]
[]
[null,"MÓDULO 1 - COMPOSIÇÃO DA REMUNERAÇÃO"]
[null,1,"COMPOSIÇÃO DA REMUNERAÇÃO",{"$nulls":5},"%","VALOR (R$)"]
[null,"A","Salário Base"]
[null,"B","Adicional Periculosidade "]
[null,"C","Adicional Insalubridade"]
[null,"D","Adicional Noturno"]
[null,"E","Adicional de Hora Noturna Reduzida"]
[null,"F","Outros (especificar)"]
[null,"TOTAL DO MÓDULO 1",{"$nulls":7},{"$f":"TRUNC(SUM(J19:J24),2)","v":0}]
[]
[null,"MÓDULO 2 – ENCARGOS E BENEFÍCIOS ANUAIS, MENSAIS E DIÁRIOS"]
[null,"Submódulo 2.1 - 13º Salário, Férias e Adicional de Férias",{"$nulls":6},"%","VALOR (R$)"]
[null,"A","13 (Décimo-terceiro) salário "]
[null,"B","Férias e Adicional de Férias"]
[null,"TOTAL SUBMÓDULO 2.1",{"$nulls":6},{"$f":"TRUNC(SUM(I29:I30),4)","v":0},{"$f":"TRUNC(SUM(J29:J30),2)","v":0}]
[]
[null,"Submódulo 2.2 - GPS, FGTS e Outras Contribuições",{"$nulls":6},"%","VALOR (R$)"]
[null,"A","INSS "]
[null,"B","Salário Educação "]
[null,"C","SAT"]
[null,"D","SESC ou SESI"]
[null,"E","SENAI - SENAC "]
[null,"F","SEBRAE "]
[null,"G","INCRA "]
[null,"H","FGTS "]
[null,"TOTAL SUBMÓDULO 2.2",{"$nulls":6},{"$f":"SUM(I34:I41)","v":0},{"$f":"TRUNC(SUM(J34:J41),2)","v":0}]
[]
[null,"Submódulo 2.3 - Benefícios Mensais e Diários",{"$nulls":7},"VALOR (R$)"]
[null,"A","Transporte "]
[null,"B","Auxílio-Refeição/Alimentação "]
[null,"C","Seguro de vida"]
[null,"D","Auxílio Saúde - PAF"]
[null,"E","Contribuição Assistencial Patronal"]
[null,"F","Outros (especificar)"]
[null,"TOTAL SUBMÓDULO 2.3",{"$nulls":7},{"$f":"TRUNC(SUM(J45:J50),2)","v":0}]
[]
[null,"QUADRO-RESUMO DO MÓDULO 2 - ENCARGOS, BENEFÍCIOS ANUAIS, MENSAIS E DIÁRIOS"]
[null,"Módulo 2 - Encargos, Benefícios Anuais, Mensais e Diários",{"$nulls":7},"VALOR (R$)"]
[null,"2.1","13º Salário, Férias e Adicional de Férias",{"$nulls":6},{"$f":"J31","v":0}]
[null,"2.2","GPS, FGTS e Outras Contribuições",{"$nulls":6},{"$f":"J42","v":0}]
[null,"2.3","Benefícios Mensais e Diários",{"$nulls":6},{"$f":"J51","v":0}]
[null,"TOTAL DO MÓDULO 2",{"$nulls":7},{"$f":"TRUNC(SUM(J55:J57),2)","v":0}]
[]
[null,"MÓDULO 3 – PROVISÃO PARA RESCISÃO"]
[null,3,"PROVISÃO PARA RESCISÃO",{"$nulls":5},"%","VALOR (R$)"]
[null,"A","Aviso Prévio Indenizado"]
[null,"B","Incidência do FGTS sobre Aviso Prévio Indenizado"]
[null,"C","Multa do FGTS e Contribuição Social sobre o Aviso Prévio Indenizado"]
[null,"D","Aviso Prévio Trabalhado "]
[null,"E","Incidência dos encargos do submódulo 2.2 sobre Aviso Prévio Trabalhado"]
[null,"F","Multa do FGTS e Contribuição Social sobre o Aviso Prévio Trabalhado. "]
[null,"TOTAL DO MÓDULO 3",{"$nulls":6},{"$f":"TRUNC(SUM(I62:I67),4)","v":0},{"$f":"TRUNC(SUM(J62:J67),2)","v":0}]
[]
[null,"MÓDULO 4 – CUSTO DE REPOSIÇÃO DO PROFISSIONAL AUSENTE"]
[null,"Submódulo 4.1 - Ausências Legais",{"$nulls":6},"%","VALOR (R$)"]
[null,"A","Férias "]
[null,"B","Ausências Legais"]
[null,"C","Licença Paternidade"]
[null,"D","Ausência por Acidente de Trabalho "]
[null,"E","Afastamento Maternidade"]
[null,"F","Outros (especificar)"]
[null,"TOTAL SUBMÓDULO 4.1",{"$nulls":7},{"$f":"TRUNC(SUM(J72:J77),2)","v":0}]
[]
[null,"Submódulo 4.2 - Intrajornada",{"$nulls":6},"%","VALOR (R$)"]
[null,"A","Intervalo para Repouso ou Alimentação"]
[null,"TOTAL SUBMÓDULO 4.2",{"$nulls":6},{"$f":"TRUNC(SUM(I81),4)","v":0},{"$f":"TRUNC(SUM(J81),2)","v":0}]
[]
[null,"QUADRO-RESUMO DO MÓDULO 4 - CUSTO DE REPOSIÇÃO DO PROFISSIONAL AUSENTE"]
[null,"Módulo 4 - Custo de Reposição do Profissional Ausente",{"$nulls":7},"VALOR (R$)"]
[null,"4.1","Ausências Legais",{"$nulls":6},{"$f":"J78","v":0}]
[null,"4.2","Intrajornada",{"$nulls":6},{"$f":"J82","v":0}]
[null,"TOTAL DO MÓDULO 4",{"$nulls":7},{"$f":"TRUNC(SUM(J86:J87),2)","v":0}]
[]
[null,"MÓDULO 5 – INSUMOS DIVERSOS"]
[null,5,"INSUMOS DIVERSOS",{"$nulls":6},"VALOR (R$)"]
[null,"A","Uniformes"]
[null,"B","Materiais"]
[null,"C","Equipamentos"]
[null,"D","Outros"]
[null,"TOTAL DO MÓDULO 5",{"$nulls":6},"-",{"$f":"SUM(J92:J95)","v":0}]
[]
[null,"MÓDULO 6 – CUSTOS INDIRETOS, TRIBUTOS E LUCRO"]
[null,6,"CUSTOS INDIRETOS, TRIBUTOS E LUCRO",{"$nulls":5},"%","VALOR (R$)"]
[null,"A","Custos Indiretos"]
[null,"B","Lucro"]
[null,"C","TRIBUTOS",null,null,"Base Cálculo",null,{"$f":"ROUND((J116+J100+J101)/(1-I102),2)","v":0}]
[null,"C.1","PIS "]
[null,"C.2","COFINS "]
[null,"C.3","ISSQN"]
[null,"TOTAL DO MÓDULO 6",{"$nulls":7},{"$f":"J100+J101+J102","v":0}]
[]
[]
[null,"QUADRO RESUMO DO CUSTO POR EMPREGADO"]
[null,"Mão-de-Obra vinculada à execução contratual (valor por empregado)",{"$nulls":7},"VALOR (R$)"]
[null,"A",{"$f":"B17","v":"MÓDULO 1 - COMPOSIÇÃO DA REMUNERAÇÃO"},{"$nulls":6},{"$f":"J25","v":0}]
[null,"B",{"$f":"B27","v":"MÓDULO 2 – ENCARGOS E BENEFÍCIOS ANUAIS, MENSAIS E DIÁRIOS"},{"$nulls":6},{"$f":"J58","v":0}]
[null,"C",{"$f":"B60","v":"MÓDULO 3 – PROVISÃO PARA RESCISÃO"},{"$nulls":6},{"$f":"J68","v":0}]
[null,"D",{"$f":"B70","v":"MÓDULO 4 – CUSTO DE REPOSIÇÃO DO PROFISSIONAL AUSENTE"},{"$nulls":6},{"$f":"J88","v":0}]
[null,"E",{"$f":"B90","v":"MÓDULO 5 – INSUMOS DIVERSOS"},{"$nulls":6},{"$f":"J96","v":0}]
[null,null,"Subtotal (A + B + C + D + E)",{"$nulls":6},{"$f":"TRUNC(SUM(J111:J115),2)","v":0}]
[null,"F",{"$f":"B98","v":"MÓDULO 6 – CUSTOS INDIRETOS, TRIBUTOS E LUCRO"},{"$nulls":6},{"$f":"J106","v":0}]
[null,"PREÇO TOTAL POR EMPREGADO",{"$nulls":7},{"$f":"TRUNC(SUM(J116:J117),2)","v":0}]

{"sheet":"Uniformes_Equip.","index":4,"n_rows":6,"n_cols":5,"rows_kept":6,"cut":false,"hidden":false,"merged":[]}
[" 1ª Superintendência Regional – MG","Preço médio unitário (R$)","Quantidade anual","Custo anual por posto (R$)","Custo mensal por posto (R$)"]
[" Calça jeans",null,4,{"$f":"C2*B2","v":0},{"$f":"D2/12","v":0}]
["Camisa azul claro social, algodão, manga curta, com emblema da empresa pintado.",null,4,{"$f":"C3*B3","v":0},{"$f":"D3/12","v":0}]
["Par de sapato preto",null,2,{"$f":"C4*B4","v":0},{"$f":"D4/12","v":0}]
["Crachá",null,1,0,0]
[null,null,null,"Total",{"$f":"SUM(E2:E4,E5)","v":0}]

{"sheet":"Supervisor - Montes Claros","index":5,"n_rows":118,"n_cols":10,"rows_kept":118,"cut":false,"hidden":false,"merged":[[7,1,7,2],[7,3,7,4],[7,5,7,9],[9,1,9,9],[10,2,10,8],[11,2,11,8],[0,1,0,9],[1,2,1,8],[2,2,2,8],[3,2,3,8],[5,1,5,9],[6,1,6,2],[6,3,6,4],[6,5,6,9],[18,2,18,7],[19,2,19,7],[20,2,20,7],[21,2,21,7],[22,2,22,7],[23,2,23,7],[12,2,12,8],[13,2,13,8],[14,2,14,8],[15,1,15,9],[16,1,16,9],[17,2,17,7],[31,1,31,9],[32,1,32,7],[33,2,33,7],[34,2,34,7],[35,2,35,7],[36,2,36,7],[24,1,24,8],[26,1,26,9],[27,1,27,7],[28,2,28,7],[29,2,29,7],[30,1,30,7],[43,1,43,7],[44,2,44,7],[45,2,45,7],[46,2,46,7],[47,2,47,7],[48,2,48,7],[37,2,37,7],[38,2,38,7],[39,2,39,7],[40,2,40,7],[41,1,41,7],[42,1,42,9],[55,2,55,8],[56,2,56,8],[57,1,57,8],[58,1,58,9],[59,1,59,9],[60,2,60,7],[49,2,49,7],[50,1,50,8],[51,1,51,9],[52,1,52,9],[53,1,53,8],[54,2,54,8],[67,1,67,7],[68,1,68,9],[69,1,69,9],[70,1,70,7],[71,2,71,7],[72,2,72,7],[61,2,61,7],[62,2,62,7],[63,2,63,7],[64,2,64,7],[65,2,65,7],[66,2,66,7],[79,1,79,7],[80,2,80,7],[81,1,81,7],[82,1,82,9],[83,1,83,9],[84,1,84,8],[73,2,73,7],[74,2,74,7],[75,2,75,7],[76,2,76,7],[77,1,77,7],[78,1,78,9],[91,2,91,7],[92,2,92,7],[93,2,93,7],[94,2,94,7],[95,1,95,7],[96,1,96,9],[85,2,85,8],[86,2,86,8],[87,1,87,8],[88,1,88,9],[89,1,89,9],[90,2,90,7],[102,2,102,7],[103,2,103,7],[104,2,104,7],[105,1,105,7],[106,2,106,9],[108,1,108,9],[97,1,97,9],[98,2,98,7],[99,2,99,7],[100,2,100,7],[101,2,101,4],[101,5,101,6],[115,2,115,8],[116,2,116,8],[117,1,117,8],[109,1,109,8],[110,2,110,8],[111,2,111,8],[112,2,112,8],[113,2,113,8],[114,2,114,8]]}
[" 1ª Superintendência Regional – Montes Claros / MG","Discriminação dos Serviços"]
[null,"B","Município",{"$nulls":6},"Montes Claros/MG"]
[null,"C","Ano do Acordo, Convenção ou Dissídio Coletivo",{"$nulls":6},2023]
[null,"D","Nº de meses de execução contratual",{"$nulls":6},12]
[]
[null,"Identificação do Serviço"]
[null,"Tipo de Serviço",null,"Unidade de Medida",null,"Quantidade total a contratar "]
[null,"Supervisor",null,"SERVIÇO ",null,1]
[]
[null,"Dados para composição dos custos referentes à mão-de-obra"]
[null,1,"Tipo de serviço (mesmo serviço com características distintas)",{"$nulls":6},{"$f":"B8","v":"Supervisor"}]
[null,2,"Classificação Brasileira de Ocupações (CBO)",{"$nulls":6},"7823-05; 7823-10; 7825-10 e 4101-05"]
[null,3,"Salário Nominativo da Categoria Profissional",{"$nulls":6},2793.9]
[null,4,"Categoria profissional (vinculada à execução contratual)",{"$nulls":6},{"$f":"B8","v":"Supervisor"}]
[null,5,"Data base da categoria (dia/mês/ano)",{"$nulls":6},"2023-01-01"]
[]
[null,"MÓDULO 1 - COMPOSIÇÃO DA REMUNERAÇÃO"]
[null,1,"COMPOSIÇÃO DA REMUNERAÇÃO",{"$nulls":5},"%","VALOR (R$)"]
[null,"A","Salário Base"]
[null,"B","Adicional Periculosidade "]
[null,"C","Adicional Insalubridade"]
[null,"D","Adicional Noturno"]
[null,"E","Adicional de Hora Noturna Reduzida"]
[null,"F","Outros (especificar)"]
[null,"TOTAL DO MÓDULO 1",{"$nulls":7},{"$f":"TRUNC(SUM(J19:J24),2)","v":0}]
[]
[null,"MÓDULO 2 – ENCARGOS E BENEFÍCIOS ANUAIS, MENSAIS E DIÁRIOS"]
[null,"Submódulo 2.1 - 13º Salário, Férias e Adicional de Férias",{"$nulls":6},"%","VALOR (R$)"]
[null,"A","13 (Décimo-terceiro) salário "]
[null,"B","Férias e Adicional de Férias"]
[null,"TOTAL SUBMÓDULO 2.1",{"$nulls":6},{"$f":"TRUNC(SUM(I29:I30),4)","v":0},{"$f":"TRUNC(SUM(J29:J30),2)","v":0}]
[]
[null,"Submódulo 2.2 - GPS, FGTS e Outras Contribuições",{"$nulls":6},"%","VALOR (R$)"]
[null,"A","INSS "]
[null,"B","Salário Educação "]
[null,"C","SAT"]
[null,"D","SESC ou SESI"]
[null,"E","SENAI - SENAC "]
[null,"F","SEBRAE "]
[null,"G","INCRA "]
[null,"H","FGTS "]
[null,"TOTAL SUBMÓDULO 2.2",{"$nulls":6},{"$f":"SUM(I34:I41)","v":0},{"$f":"TRUNC(SUM(J34:J41),2)","v":0}]
[]
[null,"Submódulo 2.3 - Benefícios Mensais e Diários",{"$nulls":7},"VALOR (R$)"]
[null,"A","Transporte "]
[null,"B","Auxílio-Refeição/Alimentação "]
[null,"C","Seguro de vida"]
[null,"D","Auxílio Saúde - PAF"]
[null,"E","Contribuição Assistencial Patronal"]
[null,"F","Outros (especificar)"]
[null,"TOTAL SUBMÓDULO 2.3",{"$nulls":7},{"$f":"TRUNC(SUM(J45:J50),2)","v":0}]
[]
[null,"QUADRO-RESUMO DO MÓDULO 2 - ENCARGOS, BENEFÍCIOS ANUAIS, MENSAIS E DIÁRIOS"]
[null,"Módulo 2 - Encargos, Benefícios Anuais, Mensais e Diários",{"$nulls":7},"VALOR (R$)"]
[null,"2.1","13º Salário, Férias e Adicional de Férias",{"$nulls":6},{"$f":"J31","v":0}]
[null,"2.2","GPS, FGTS e Outras Contribuições",{"$nulls":6},{"$f":"J42","v":0}]
[null,"2.3","Benefícios Mensais e Diários",{"$nulls":6},{"$f":"J51","v":0}]
[null,"TOTAL DO MÓDULO 2",{"$nulls":7},{"$f":"TRUNC(SUM(J55:J57),2)","v":0}]
[]
[null,"MÓDULO 3 – PROVISÃO PARA RESCISÃO"]
[null,3,"PROVISÃO PARA RESCISÃO",{"$nulls":5},"%","VALOR (R$)"]
[null,"A","Aviso Prévio Indenizado"]
[null,"B","Incidência do FGTS sobre Aviso Prévio Indenizado"]
[null,"C","Multa do FGTS e Contribuição Social sobre o Aviso Prévio Indenizado"]
[null,"D","Aviso Prévio Trabalhado "]
[null,"E","Incidência dos encargos do submódulo 2.2 sobre Aviso Prévio Trabalhado"]
[null,"F","Multa do FGTS e Contribuição Social sobre o Aviso Prévio Trabalhado. "]
[null,"TOTAL DO MÓDULO 3",{"$nulls":6},{"$f":"TRUNC(SUM(I62:I67),4)","v":0},{"$f":"TRUNC(SUM(J62:J67),2)","v":0}]
[]
[null,"MÓDULO 4 – CUSTO DE REPOSIÇÃO DO PROFISSIONAL AUSENTE"]
[null,"Submódulo 4.1 - Ausências Legais",{"$nulls":6},"%","VALOR (R$)"]
[null,"A","Férias "]
[null,"B","Ausências Legais"]
[null,"C","Licença Paternidade"]
[null,"D","Ausência por Acidente de Trabalho "]
[null,"E","Afastamento Maternidade"]
[null,"F","Outros (especificar)"]
[null,"TOTAL SUBMÓDULO 4.1",{"$nulls":7},{"$f":"TRUNC(SUM(J72:J77),2)","v":0}]
[]
[null,"Submódulo 4.2 - Intrajornada",{"$nulls":6},"%","VALOR (R$)"]
[null,"A","Intervalo para Repouso ou Alimentação"]
[null,"TOTAL SUBMÓDULO 4.2",{"$nulls":6},{"$f":"TRUNC(SUM(I81),4)","v":0},{"$f":"TRUNC(SUM(J81),2)","v":0}]
[]
[null,"QUADRO-RESUMO DO MÓDULO 4 - CUSTO DE REPOSIÇÃO DO PROFISSIONAL AUSENTE"]
[null,"Módulo 4 - Custo de Reposição do Profissional Ausente",{"$nulls":7},"VALOR (R$)"]
[null,"4.1","Ausências Legais",{"$nulls":6},{"$f":"J78","v":0}]
[null,"4.2","Intrajornada",{"$nulls":6},{"$f":"J82","v":0}]
[null,"TOTAL DO MÓDULO 4",{"$nulls":7},{"$f":"TRUNC(SUM(J86:J87),2)","v":0}]
[]
[null,"MÓDULO 5 – INSUMOS DIVERSOS"]
[null,5,"INSUMOS DIVERSOS",{"$nulls":6},"VALOR (R$)"]
[null,"A","Uniformes"]
[null,"B","Materiais"]
[null,"C","Equipamentos"]
[null,"D","Outros"]
[null,"TOTAL DO MÓDULO 5",{"$nulls":6},"-",{"$f":"SUM(J92:J95)","v":0}]
[]
[null,"MÓDULO 6 – CUSTOS INDIRETOS, TRIBUTOS E LUCRO"]
[null,6,"CUSTOS INDIRETOS, TRIBUTOS E LUCRO",{"$nulls":5},"%","VALOR (R$)"]
[null,"A","Custos Indiretos"]
[null,"B","Lucro"]
[null,"C","TRIBUTOS",null,null,"Base Cálculo",null,{"$f":"ROUND((J116+J100+J101)/(1-I102),2)","v":0}]
[null,"C.1","PIS "]
[null,"C.2","COFINS "]
[null,"C.3","ISSQN"]
[null,"TOTAL DO MÓDULO 6",{"$nulls":7},{"$f":"J100+J101+J102","v":0}]
[]
[]
[null,"QUADRO RESUMO DO CUSTO POR EMPREGADO"]
[null,"Mão-de-Obra vinculada à execução contratual (valor por empregado)",{"$nulls":7},"VALOR (R$)"]
[null,"A",{"$f":"B17","v":"MÓDULO 1 - COMPOSIÇÃO DA REMUNERAÇÃO"},{"$nulls":6},{"$f":"J25","v":0}]
[null,"B",{"$f":"B27","v":"MÓDULO 2 – ENCARGOS E BENEFÍCIOS ANUAIS, MENSAIS E DIÁRIOS"},{"$nulls":6},{"$f":"J58","v":0}]
[null,"C",{"$f":"B60","v":"MÓDULO 3 – PROVISÃO PARA RESCISÃO"},{"$nulls":6},{"$f":"J68","v":0}]
[null,"D",{"$f":"B70","v":"MÓDULO 4 – CUSTO DE REPOSIÇÃO DO PROFISSIONAL AUSENTE"},{"$nulls":6},{"$f":"J88","v":0}]
[null,"E",{"$f":"B90","v":"MÓDULO 5 – INSUMOS DIVERSOS"},{"$nulls":6},{"$f":"J96","v":0}]
[null,null,"Subtotal (A + B + C + D + E)",{"$nulls":6},{"$f":"TRUNC(SUM(J111:J115),2)","v":0}]
[null,"F",{"$f":"B98","v":"MÓDULO 6 – CUSTOS INDIRETOS, TRIBUTOS E LUCRO"},{"$nulls":6},{"$f":"J106","v":0}]
[null,"PREÇO TOTAL POR EMPREGADO",{"$nulls":7},{"$f":"TRUNC(SUM(J116:J117),2)","v":0}]